[Event "*** SCC Grand Prix: Titled Tuesday Blitz"]
[Site "Chess.com"]
[Date "2020.06.09"]
[Round "6"]
[White "fabianvivasz"]
[Black "Savva09022009"]
[Result "1-0"]
[WhiteElo "2292"]
[BlackElo "2420"]
[TimeControl "180+1"]
[EndTime "10:06:44 PDT"]
[Termination "fabianvivasz won by resignation"]

1. c4 {[%clk 0:03:00.9]} 1... e5 {[%clk 0:02:59.2]} 2. Nc3 {[%clk 0:02:57.1]}
2... Nf6 {[%clk 0:02:58.2]} 3. Nf3 {[%clk 0:02:56.5]} 3... Nc6 {[%clk
0:02:57.5]} 4. e4 {[%clk 0:02:56]} 4... Bb4 {[%clk 0:02:50.7]} 5. d3 {[%clk
0:02:52.5]} 5... Bc5 {[%clk 0:02:43.8]} 6. Nxe5 {[%clk 0:02:43]} 6... Bxf2+
{[%clk 0:02:39.8]} 7. Kxf2 {[%clk 0:02:43.9]} 7... Nxe5 {[%clk 0:02:40.3]} 8. d4
{[%clk 0:02:43.6]} 8... Neg4+ {[%clk 0:02:37]} 9. Kg1 {[%clk 0:02:37.3]} 9...
O-O {[%clk 0:02:22.5]} 10. e5 {[%clk 0:02:30.9]} 10... d6 {[%clk 0:02:15.4]} 11.
exf6 {[%clk 0:02:14.7]} 11... Qxf6 {[%clk 0:02:16.3]} 12. Ne4 {[%clk 0:02:11.1]}
12... Qg6 {[%clk 0:02:13.2]} 13. Nf2 {[%clk 0:01:56.7]} 13... Re8 {[%clk
0:02:01.8]} 14. Bd3 {[%clk 0:01:35.3]} 14... Nxf2 {[%clk 0:01:38.3]} 15. Kxf2
{[%clk 0:01:33.7]} 15... Qf6+ {[%clk 0:01:38.2]} 16. Kg3 {[%clk 0:01:24.5]}
16... Bf5 {[%clk 0:01:05.3]} 17. Bxf5 {[%clk 0:01:18.8]} 17... Qxf5 {[%clk
0:01:06.2]} 18. Rf1 {[%clk 0:01:09.6]} 18... Qe4 {[%clk 0:00:45.1]} 19. Qf3
{[%clk 0:01:05.3]} 19... Qxd4 {[%clk 0:00:32.2]} 20. Qxf7+ {[%clk 0:01:02.9]}
20... Kh8 {[%clk 0:00:32.6]} 21. Bg5 {[%clk 0:00:49.6]} 21... h6 {[%clk
0:00:23.5]} 22. Bf4 {[%clk 0:00:31.4]} 22... Re2 {[%clk 0:00:21.7]} 23. Rae1
{[%clk 0:00:23.4]} 23... Rxe1 {[%clk 0:00:12.5]} 24. Rxe1 {[%clk 0:00:22.5]}
24... Qd3+ {[%clk 0:00:13.1]} 25. Kf2 {[%clk 0:00:20.8]} 25... Kh7 {[%clk
0:00:10.2]} 26. Re7 {[%clk 0:00:19.7]} 26... Qd4+ {[%clk 0:00:09]} 27. Be3
{[%clk 0:00:18.7]} 27... Qxb2+ {[%clk 0:00:08.7]} 28. Kf3 {[%clk 0:00:18.6]}
28... d5 {[%clk 0:00:05.4]} 29. cxd5 {[%clk 0:00:18]} 29... c6 {[%clk
0:00:05.3]} 30. d6 {[%clk 0:00:17.7]} 30... Rg8 {[%clk 0:00:04.4]} 31. d7 {[%clk
0:00:15.9]} 31... c5 {[%clk 0:00:04.2]} 32. Re8 {[%clk 0:00:15.7]} 32... Qc3
{[%clk 0:00:01.5]} 1-0

[Event "*** SCC Grand Prix: Titled Tuesday Blitz"]
[Site "Chess.com"]
[Date "2020.06.09"]
[Round "6"]
[White "LionTheLeon_06"]
[Black "dretch"]
[Result "0-1"]
[WhiteElo "2686"]
[BlackElo "2807"]
[TimeControl "180+1"]
[EndTime "10:06:45 PDT"]
[Termination "dretch won on time"]

1. d4 {[%clk 0:03:00.9]} 1... d5 {[%clk 0:02:59.8]} 2. c4 {[%clk 0:03:00.6]}
2... c6 {[%clk 0:03:00]} 3. Nf3 {[%clk 0:03:00.2]} 3... Nf6 {[%clk 0:03:00.4]}
4. g3 {[%clk 0:03:00.7]} 4... g6 {[%clk 0:02:54.9]} 5. Qa4 {[%clk 0:02:58.8]}
5... dxc4 {[%clk 0:02:44.9]} 6. Qxc4 {[%clk 0:02:58]} 6... Be6 {[%clk
0:02:42.7]} 7. Qa4 {[%clk 0:02:54.1]} 7... Bg7 {[%clk 0:02:42.5]} 8. Nc3 {[%clk
0:02:53.4]} 8... O-O {[%clk 0:02:41.1]} 9. Bg2 {[%clk 0:02:53.3]} 9... Nbd7
{[%clk 0:02:37.9]} 10. O-O {[%clk 0:02:52.4]} 10... Nb6 {[%clk 0:02:36.3]} 11.
Qc2 {[%clk 0:02:52.6]} 11... Bf5 {[%clk 0:02:35.3]} 12. e4 {[%clk 0:02:51.6]}
12... Bg4 {[%clk 0:02:35.7]} 13. Rd1 {[%clk 0:02:48.6]} 13... Qc8 {[%clk
0:02:25.5]} 14. b3 {[%clk 0:02:42.7]} 14... c5 {[%clk 0:02:14.2]} 15. Be3 {[%clk
0:02:12.9]} 15... cxd4 {[%clk 0:02:02.5]} 16. Bxd4 {[%clk 0:02:13.8]} 16... Rd8
{[%clk 0:01:56.7]} 17. Rac1 {[%clk 0:02:05]} 17... Bh6 {[%clk 0:01:56.1]} 18. e5
{[%clk 0:01:10.5]} 18... Bxc1 {[%clk 0:01:43.3]} 19. exf6 {[%clk 0:01:10.2]}
19... Ba3 {[%clk 0:01:43.3]} 20. Qe2 {[%clk 0:00:24.5]} 20... Qe6 {[%clk
0:01:21.5]} 21. Ne4 {[%clk 0:00:21.1]} 21... Rac8 {[%clk 0:01:19.3]} 22. h3
{[%clk 0:00:17.9]} 22... Bf5 {[%clk 0:01:17.9]} 23. Nfg5 {[%clk 0:00:17.2]}
23... Qd7 {[%clk 0:01:11.9]} 24. fxe7 {[%clk 0:00:07.5]} 24... Bxe7 {[%clk
0:01:11.7]} 25. g4 {[%clk 0:00:06.1]} 25... Bxe4 {[%clk 0:01:08.3]} 26. Nxe4
{[%clk 0:00:07]} 26... Qe6 {[%clk 0:01:03.4]} 27. Qf3 {[%clk 0:00:05.7]} 27...
Rd7 {[%clk 0:00:55.5]} 28. g5 {[%clk 0:00:04]} 28... Rcd8 {[%clk 0:00:54.2]} 29.
Re1 {[%clk 0:00:04.5]} 29... Qf5 {[%clk 0:00:40.4]} 30. Nf6+ {[%clk 0:00:03.9]}
30... Bxf6 {[%clk 0:00:39.5]} 31. Bxf6 {[%clk 0:00:04.8]} 31... Qxf3 {[%clk
0:00:29]} 32. Bxf3 {[%clk 0:00:05.7]} 32... Rb8 {[%clk 0:00:21.7]} 33. Re5
{[%clk 0:00:04.5]} 33... Kf8 {[%clk 0:00:15]} 0-1

[Event "*** SCC Grand Prix: Titled Tuesday Blitz"]
[Site "Chess.com"]
[Date "2020.06.09"]
[Round "6"]
[White "GjakanTati"]
[Black "doctorcristian"]
[Result "1-0"]
[WhiteElo "2596"]
[BlackElo "2422"]
[TimeControl "180+1"]
[EndTime "10:06:45 PDT"]
[Termination "GjakanTati won by resignation"]

1. d4 {[%clk 0:01:55.5]} 1... Nf6 {[%clk 0:02:56.6]} 2. c4 {[%clk 0:01:54.3]}
2... c5 {[%clk 0:02:56.5]} 3. d5 {[%clk 0:01:54.4]} 3... e5 {[%clk 0:02:56.6]}
4. Nc3 {[%clk 0:01:53.9]} 4... d6 {[%clk 0:02:56.9]} 5. g3 {[%clk 0:01:54.4]}
5... Be7 {[%clk 0:02:57]} 6. Bg2 {[%clk 0:01:54.8]} 6... Nbd7 {[%clk 0:02:56.7]}
7. Nf3 {[%clk 0:01:55.2]} 7... Nf8 {[%clk 0:02:56.5]} 8. O-O {[%clk 0:01:55.6]}
8... Ng6 {[%clk 0:02:56.6]} 9. e4 {[%clk 0:01:54.9]} 9... O-O {[%clk 0:02:54.4]}
10. Ne1 {[%clk 0:01:54.8]} 10... h6 {[%clk 0:02:46.1]} 11. Be3 {[%clk
0:01:50.8]} 11... Bd7 {[%clk 0:02:45.4]} 12. Nd3 {[%clk 0:01:48.1]} 12... Ng4
{[%clk 0:02:43.7]} 13. Bd2 {[%clk 0:01:47.9]} 13... Qc8 {[%clk 0:02:41.3]} 14.
f4 {[%clk 0:01:45.8]} 14... exf4 {[%clk 0:02:36.8]} 15. gxf4 {[%clk 0:01:45.6]}
15... Bf6 {[%clk 0:02:36.1]} 16. Ne2 {[%clk 0:01:40.8]} 16... Bd4+ {[%clk
0:02:23.1]} 17. Nxd4 {[%clk 0:01:36.2]} 17... cxd4 {[%clk 0:02:23.3]} 18. Rc1
{[%clk 0:01:33.4]} 18... Nh4 {[%clk 0:02:19.5]} 19. Qe2 {[%clk 0:01:22.2]} 19...
Nxg2 {[%clk 0:01:59.3]} 20. Qxg2 {[%clk 0:01:21.1]} 20... Ne3 {[%clk 0:01:59]}
21. Bxe3 {[%clk 0:01:18.6]} 21... Bh3 {[%clk 0:01:59]} 22. Qg3 {[%clk
0:01:18.3]} 22... dxe3 {[%clk 0:01:49.3]} 23. Rf3 {[%clk 0:01:17.7]} 23... Bg4
{[%clk 0:01:26.5]} 24. Rxe3 {[%clk 0:01:17.5]} 24... f5 {[%clk 0:01:26.7]} 25.
e5 {[%clk 0:01:16.3]} 25... dxe5 {[%clk 0:01:23.9]} 26. fxe5 {[%clk 0:01:14.4]}
26... g5 {[%clk 0:01:21]} 27. Ree1 {[%clk 0:00:57.3]} 27... f4 {[%clk
0:01:19.5]} 28. Qf2 {[%clk 0:00:57.7]} 28... Qf5 {[%clk 0:01:14]} 29. Nc5 {[%clk
0:00:56.8]} 29... Rfe8 {[%clk 0:00:49.1]} 30. e6 {[%clk 0:00:53.5]} 30... Rac8
{[%clk 0:00:37.2]} 31. Nxb7 {[%clk 0:00:50.3]} 31... Bh3 {[%clk 0:00:32.1]} 32.
Rc3 {[%clk 0:00:35.3]} 32... Rb8 {[%clk 0:00:26.3]} 33. Nd6 {[%clk 0:00:30.6]}
33... Qg4+ {[%clk 0:00:25.4]} 34. Kh1 {[%clk 0:00:30.8]} 34... Re7 {[%clk
0:00:19.3]} 35. Rg1 {[%clk 0:00:30]} 35... Qh5 {[%clk 0:00:18.5]} 36. Qxf4
{[%clk 0:00:24.5]} 36... Rf8 {[%clk 0:00:17.5]} 37. Qg3 {[%clk 0:00:24.1]} 37...
Bf5 {[%clk 0:00:15.1]} 38. Nxf5 {[%clk 0:00:23.8]} 38... Rxf5 {[%clk 0:00:14.5]}
39. Re3 {[%clk 0:00:24.1]} 39... Rf4 {[%clk 0:00:13.7]} 40. Qxf4 {[%clk
0:00:23.3]} 1-0

[Event "*** SCC Grand Prix: Titled Tuesday Blitz"]
[Site "Chess.com"]
[Date "2020.06.09"]
[Round "6"]
[White "RitvarsReimanis"]
[Black "GukeshDommaraju"]
[Result "0-1"]
[WhiteElo "2483"]
[BlackElo "2652"]
[TimeControl "180+1"]
[EndTime "10:06:46 PDT"]
[Termination "GukeshDommaraju won on time"]

1. d4 {[%clk 0:02:58.4]} 1... d5 {[%clk 0:02:59.9]} 2. c4 {[%clk 0:02:58]} 2...
e6 {[%clk 0:03:00.3]} 3. Nf3 {[%clk 0:02:57.9]} 3... Nf6 {[%clk 0:03:00.4]} 4.
Nc3 {[%clk 0:02:56.8]} 4... Bb4 {[%clk 0:02:59.9]} 5. cxd5 {[%clk 0:02:54]} 5...
exd5 {[%clk 0:02:59.9]} 6. Bg5 {[%clk 0:02:53.2]} 6... h6 {[%clk 0:02:59.8]} 7.
Bh4 {[%clk 0:02:52.9]} 7... c5 {[%clk 0:02:57.4]} 8. e3 {[%clk 0:02:46.4]} 8...
c4 {[%clk 0:02:54.2]} 9. Be2 {[%clk 0:02:41.3]} 9... Nc6 {[%clk 0:02:52.4]} 10.
O-O {[%clk 0:02:39]} 10... g5 {[%clk 0:02:51.8]} 11. Bg3 {[%clk 0:02:38.7]}
11... Bxc3 {[%clk 0:02:52.2]} 12. bxc3 {[%clk 0:02:38.6]} 12... Ne4 {[%clk
0:02:53.1]} 13. Qc1 {[%clk 0:02:34.9]} 13... h5 {[%clk 0:02:47.4]} 14. h3 {[%clk
0:02:27.3]} 14... h4 {[%clk 0:02:44.5]} 15. Bh2 {[%clk 0:02:27.3]} 15... g4
{[%clk 0:02:44.6]} 16. hxg4 {[%clk 0:02:26.1]} 16... Bxg4 {[%clk 0:02:45]} 17.
Qb2 {[%clk 0:02:19.1]} 17... Qd7 {[%clk 0:02:38.3]} 18. Ne5 {[%clk 0:02:09.8]}
18... Nxe5 {[%clk 0:02:35]} 19. Bxe5 {[%clk 0:02:08.4]} 19... Bxe2 {[%clk
0:02:27]} 20. Bxh8 {[%clk 0:02:05.4]} 20... Bxf1 {[%clk 0:02:13]} 21. Rxf1
{[%clk 0:01:58.3]} 21... O-O-O {[%clk 0:02:08.9]} 22. Be5 {[%clk 0:01:51.5]}
22... h3 {[%clk 0:02:08.5]} 23. g3 {[%clk 0:01:29.2]} 23... h2+ {[%clk
0:02:00.4]} 24. Kg2 {[%clk 0:01:15.5]} 24... f6 {[%clk 0:01:48]} 25. Bf4 {[%clk
0:01:15]} 25... Rh8 {[%clk 0:01:45.9]} 26. Kh1 {[%clk 0:00:28.7]} 26... Qf5
{[%clk 0:01:24.3]} 27. f3 {[%clk 0:00:23.3]} 27... Ng5 {[%clk 0:00:57.4]} 28.
Bxg5 {[%clk 0:00:15.9]} 28... fxg5 {[%clk 0:00:56.9]} 29. g4 {[%clk 0:00:10.9]}
29... Qd3 {[%clk 0:00:38.6]} 30. Qc1 {[%clk 0:00:10.2]} 30... Re8 {[%clk
0:00:31.7]} 31. Re1 {[%clk 0:00:07.6]} 31... Rf8 {[%clk 0:00:29.3]} 32. Kg2
{[%clk 0:00:06.2]} 32... h1=Q+ {[%clk 0:00:20.9]} 33. Kxh1 {[%clk 0:00:02.9]}
33... Rxf3 {[%clk 0:00:20.5]} 34. Kg2 {[%clk 0:00:02.8]} 34... Qe4 {[%clk
0:00:20.2]} 0-1

[Event "*** SCC Grand Prix: Titled Tuesday Blitz"]
[Site "Chess.com"]
[Date "2020.06.09"]
[Round "6"]
[White "Sueetin"]
[Black "isainz"]
[Result "0-1"]
[WhiteElo "2353"]
[BlackElo "2165"]
[TimeControl "180+1"]
[EndTime "10:06:46 PDT"]
[Termination "isainz won on time"]

1. d4 {[%clk 0:03:00.9]} 1... Nf6 {[%clk 0:02:58.7]} 2. c4 {[%clk 0:03:00.6]}
2... g6 {[%clk 0:02:58]} 3. Nc3 {[%clk 0:03:00.3]} 3... Bg7 {[%clk 0:02:57.9]}
4. Nf3 {[%clk 0:03:00.4]} 4... O-O {[%clk 0:02:57.6]} 5. Bg5 {[%clk 0:03:01]}
5... d6 {[%clk 0:02:57.3]} 6. e3 {[%clk 0:03:01.3]} 6... Nbd7 {[%clk 0:02:54.6]}
7. Be2 {[%clk 0:03:01.4]} 7... c5 {[%clk 0:02:53.6]} 8. d5 {[%clk 0:03:01.1]}
8... a6 {[%clk 0:02:45.8]} 9. O-O {[%clk 0:02:59.2]} 9... Rb8 {[%clk 0:02:43.2]}
10. a4 {[%clk 0:02:58.3]} 10... b6 {[%clk 0:02:42.4]} 11. Nd2 {[%clk 0:02:58]}
11... Ne5 {[%clk 0:02:38.2]} 12. h3 {[%clk 0:02:56.1]} 12... h6 {[%clk
0:02:32.2]} 13. Bh4 {[%clk 0:02:55.8]} 13... Kh7 {[%clk 0:02:25.6]} 14. f4
{[%clk 0:02:54.6]} 14... Ned7 {[%clk 0:02:19.1]} 15. Bd3 {[%clk 0:02:52.4]}
15... Kg8 {[%clk 0:02:16.1]} 16. Qc2 {[%clk 0:02:47.9]} 16... b5 {[%clk
0:02:00.4]} 17. axb5 {[%clk 0:02:33.2]} 17... axb5 {[%clk 0:02:00.5]} 18. Nxb5
{[%clk 0:02:33.8]} 18... Qb6 {[%clk 0:01:46.3]} 19. b3 {[%clk 0:02:10.5]} 19...
Ba6 {[%clk 0:01:45.1]} 20. Nc3 {[%clk 0:02:10.5]} 20... Ra8 {[%clk 0:01:23.6]}
21. Kh1 {[%clk 0:01:45.5]} 21... Rfb8 {[%clk 0:01:23.2]} 22. e4 {[%clk 0:01:44]}
22... Qb4 {[%clk 0:01:13]} 23. Rae1 {[%clk 0:01:20.9]} 23... Nh5 {[%clk
0:00:51.3]} 24. e5 {[%clk 0:01:14.3]} 24... dxe5 {[%clk 0:00:47.6]} 25. fxe5
{[%clk 0:00:59.9]} 25... Nxe5 {[%clk 0:00:41]} 26. Nce4 {[%clk 0:00:08.6]} 26...
g5 {[%clk 0:00:19.5]} 27. Bxg5 {[%clk 0:00:03.1]} 27... hxg5 {[%clk 0:00:16.2]}
28. Nxg5 {[%clk 0:00:04]} 28... Ng3+ {[%clk 0:00:15.1]} 29. Kh2 {[%clk
0:00:03.5]} 29... Nxf1+ {[%clk 0:00:14.9]} 30. Bxf1 {[%clk 0:00:02.9]} 30... Bc8
{[%clk 0:00:08.2]} 31. Qh7+ {[%clk 0:00:02.2]} 31... Kf8 {[%clk 0:00:07.8]} 0-1

[Event "*** SCC Grand Prix: Titled Tuesday Blitz"]
[Site "Chess.com"]
[Date "2020.06.09"]
[Round "6"]
[White "nihalsarin"]
[Black "Haykoooo0o"]
[Result "1-0"]
[WhiteElo "2986"]
[BlackElo "2563"]
[TimeControl "180+1"]
[EndTime "10:06:47 PDT"]
[Termination "nihalsarin won by resignation"]

1. e4 {[%clk 0:03:00.9]} 1... c5 {[%clk 0:02:55.6]} 2. Nc3 {[%clk 0:03:01.8]}
2... Nc6 {[%clk 0:02:54.8]} 3. Bb5 {[%clk 0:03:01.7]} 3... Nd4 {[%clk
0:02:52.4]} 4. Nf3 {[%clk 0:02:59.4]} 4... g6 {[%clk 0:02:39.4]} 5. Nxd4 {[%clk
0:02:55.9]} 5... cxd4 {[%clk 0:02:40.3]} 6. Ne2 {[%clk 0:02:56.5]} 6... Bg7
{[%clk 0:02:39.5]} 7. O-O {[%clk 0:02:50.6]} 7... Nf6 {[%clk 0:02:38]} 8. d3
{[%clk 0:02:48.5]} 8... Qb6 {[%clk 0:02:34.4]} 9. Bc4 {[%clk 0:02:48.2]} 9... d6
{[%clk 0:02:32.4]} 10. h3 {[%clk 0:02:41.2]} 10... O-O {[%clk 0:02:31.8]} 11.
Kh1 {[%clk 0:02:34.9]} 11... e5 {[%clk 0:02:23.7]} 12. f4 {[%clk 0:02:33.9]}
12... Be6 {[%clk 0:02:23.4]} 13. Bb3 {[%clk 0:02:27.4]} 13... Rfe8 {[%clk
0:02:16.9]} 14. f5 {[%clk 0:02:22.3]} 14... Bxb3 {[%clk 0:02:14.7]} 15. axb3
{[%clk 0:02:23.2]} 15... d5 {[%clk 0:02:15]} 16. exd5 {[%clk 0:02:11.7]} 16...
Nxd5 {[%clk 0:02:15.9]} 17. Ng3 {[%clk 0:02:11.9]} 17... Rac8 {[%clk 0:02:08]}
18. Ne4 {[%clk 0:02:09.7]} 18... a6 {[%clk 0:02:02.6]} 19. Rf2 {[%clk
0:01:32.5]} 19... Qc6 {[%clk 0:01:55.9]} 20. Qf3 {[%clk 0:01:27.2]} 20... gxf5
{[%clk 0:00:51.1]} 21. Qxf5 {[%clk 0:01:27]} 21... Qg6 {[%clk 0:00:51.6]} 22. g4
{[%clk 0:00:41.5]} 22... Rc6 {[%clk 0:00:39]} 23. Bd2 {[%clk 0:00:21.3]} 23...
Rxc2 {[%clk 0:00:33.8]} 24. Qd7 {[%clk 0:00:17.3]} 24... Nc7 {[%clk 0:00:20]}
25. Raf1 {[%clk 0:00:15.5]} 25... Rf8 {[%clk 0:00:16.3]} 26. Bb4 {[%clk
0:00:15.6]} 26... Rxf2 {[%clk 0:00:13.8]} 27. Rxf2 {[%clk 0:00:16.5]} 27... Qh6
{[%clk 0:00:05.1]} 28. Bxf8 {[%clk 0:00:14.2]} 28... Qxh3+ {[%clk 0:00:05.2]}
29. Kg1 {[%clk 0:00:14.5]} 29... Bxf8 {[%clk 0:00:03.3]} 1-0

[Event "*** SCC Grand Prix: Titled Tuesday Blitz"]
[Site "Chess.com"]
[Date "2020.06.09"]
[Round "6"]
[White "Mikasinski"]
[Black "memer5334"]
[Result "1-0"]
[WhiteElo "2415"]
[BlackElo "2237"]
[TimeControl "180+1"]
[EndTime "10:06:48 PDT"]
[Termination "Mikasinski won by checkmate"]

1. e4 {[%clk 0:03:00.9]} 1... b6 {[%clk 0:02:59]} 2. d4 {[%clk 0:03:00.6]} 2...
Bb7 {[%clk 0:02:59.1]} 3. Bd3 {[%clk 0:03:01.3]} 3... e6 {[%clk 0:02:55.8]} 4.
Nf3 {[%clk 0:03:00.7]} 4... a6 {[%clk 0:02:56.1]} 5. O-O {[%clk 0:03:00.5]} 5...
Be7 {[%clk 0:02:56.7]} 6. Re1 {[%clk 0:02:58.8]} 6... d6 {[%clk 0:02:56.5]} 7.
a4 {[%clk 0:02:56.6]} 7... Nd7 {[%clk 0:02:56.4]} 8. c3 {[%clk 0:02:54.8]} 8...
c5 {[%clk 0:02:56.5]} 9. Bf4 {[%clk 0:02:54.1]} 9... Rc8 {[%clk 0:02:53.8]} 10.
Nbd2 {[%clk 0:02:53.7]} 10... Bc6 {[%clk 0:02:46.9]} 11. Nc4 {[%clk 0:02:52]}
11... Nb8 {[%clk 0:02:38.7]} 12. d5 {[%clk 0:02:47.2]} 12... Ba8 {[%clk
0:02:33.2]} 13. a5 {[%clk 0:02:36.6]} 13... e5 {[%clk 0:02:28.3]} 14. Nfxe5
{[%clk 0:02:04.8]} 14... dxe5 {[%clk 0:02:21.9]} 15. Bxe5 {[%clk 0:02:04.6]}
15... f6 {[%clk 0:02:19]} 16. Bg3 {[%clk 0:01:56.9]} 16... Nd7 {[%clk
0:02:17.5]} 17. axb6 {[%clk 0:01:47.2]} 17... Nxb6 {[%clk 0:02:12.3]} 18. Rxa6
{[%clk 0:01:43.1]} 18... Nxc4 {[%clk 0:02:11.6]} 19. Bxc4 {[%clk 0:01:42.7]}
19... Nh6 {[%clk 0:02:10.4]} 20. d6 {[%clk 0:00:57.8]} 20... Bb7 {[%clk
0:01:50.4]} 21. Ra7 {[%clk 0:00:43.5]} 21... Qb6 {[%clk 0:01:29.8]} 22. d7+
{[%clk 0:00:42.4]} 22... Kf8 {[%clk 0:01:29.6]} 23. dxc8=Q+ {[%clk 0:00:34.8]}
23... Bxc8 {[%clk 0:01:30.5]} 24. Ra8 {[%clk 0:00:27.7]} 24... Qb7 {[%clk
0:01:02.6]} 25. Bd5 {[%clk 0:00:17.5]} 25... Qd7 {[%clk 0:01:02.9]} 26. Qb3
{[%clk 0:00:10.8]} 26... Bd8 {[%clk 0:00:49.8]} 27. Be6 {[%clk 0:00:06.6]} 27...
Qd2 {[%clk 0:00:39.5]} 28. Rd1 {[%clk 0:00:03.3]} 28... Qe2 {[%clk 0:00:31.7]}
29. Rxd8+ {[%clk 0:00:02.8]} 29... Ke7 {[%clk 0:00:32.5]} 30. Ra7+ {[%clk
0:00:02.5]} 30... Kxd8 {[%clk 0:00:23.7]} 31. Bc7+ {[%clk 0:00:03.1]} 31... Ke8
{[%clk 0:00:20.3]} 32. Qa4+ {[%clk 0:00:01.8]} 32... Ke7 {[%clk 0:00:17.2]} 33.
Bf4+ {[%clk 0:00:01.9]} 33... Kxe6 {[%clk 0:00:17.5]} 34. Qc6# {[%clk
0:00:01.5]} 1-0

[Event "*** SCC Grand Prix: Titled Tuesday Blitz"]
[Site "Chess.com"]
[Date "2020.06.09"]
[Round "6"]
[White "Charlottemillard17"]
[Black "Nastya_Rakhmangulova"]
[Result "0-1"]
[WhiteElo "1503"]
[BlackElo "2268"]
[TimeControl "180+1"]
[EndTime "10:06:48 PDT"]
[Termination "Nastya_Rakhmangulova won by checkmate"]

1. e4 {[%clk 0:03:00.9]} 1... d5 {[%clk 0:01:32.3]} 2. exd5 {[%clk 0:02:59.2]}
2... Qxd5 {[%clk 0:01:33.2]} 3. Nc3 {[%clk 0:02:58.7]} 3... Qd6 {[%clk
0:01:33.9]} 4. d4 {[%clk 0:02:58.5]} 4... Nf6 {[%clk 0:01:34.7]} 5. Nf3 {[%clk
0:02:56.6]} 5... Bg4 {[%clk 0:01:35.2]} 6. h3 {[%clk 0:02:56.6]} 6... Bh5 {[%clk
0:01:34.6]} 7. Be2 {[%clk 0:02:55.9]} 7... Nc6 {[%clk 0:01:33.9]} 8. Be3 {[%clk
0:02:54.8]} 8... a6 {[%clk 0:01:34.3]} 9. Qd2 {[%clk 0:02:39.4]} 9... O-O-O
{[%clk 0:01:32.9]} 10. Bf4 {[%clk 0:02:35]} 10... Qb4 {[%clk 0:01:29.6]} 11. a3
{[%clk 0:02:25.7]} 11... Qxb2 {[%clk 0:01:23.3]} 12. Rb1 {[%clk 0:02:21.1]}
12... Qxa3 {[%clk 0:01:22.4]} 13. O-O {[%clk 0:01:54]} 13... e6 {[%clk
0:00:33.1]} 14. Rb3 {[%clk 0:01:38.8]} 14... Qa5 {[%clk 0:00:31.6]} 15. Rfb1
{[%clk 0:01:36.7]} 15... b6 {[%clk 0:00:29.9]} 16. Qc1 {[%clk 0:01:24.2]} 16...
Bxf3 {[%clk 0:00:29.5]} 17. Bxf3 {[%clk 0:01:20.3]} 17... Nxd4 {[%clk
0:00:29.7]} 18. Ra3 {[%clk 0:01:18.8]} 18... Bxa3 {[%clk 0:00:28.6]} 19. Qe3
{[%clk 0:01:12.7]} 19... Nxf3+ {[%clk 0:00:26]} 20. Qxf3 {[%clk 0:01:12.5]}
20... Nd5 {[%clk 0:00:25.4]} 21. Nxd5 {[%clk 0:01:06.4]} 21... Rxd5 {[%clk
0:00:26.3]} 22. c4 {[%clk 0:01:04.2]} 22... Rdd8 {[%clk 0:00:21.1]} 23. Qa8+
{[%clk 0:01:02.6]} 23... Kd7 {[%clk 0:00:21.3]} 24. Rd1+ {[%clk 0:01:01.7]}
24... Ke7 {[%clk 0:00:20.2]} 25. Rxd8 {[%clk 0:00:51.9]} 25... Rxd8 {[%clk
0:00:21.1]} 26. Qc6 {[%clk 0:00:51.5]} 26... Qc5 {[%clk 0:00:20.5]} 27. Qe4
{[%clk 0:00:49]} 27... Rd1+ {[%clk 0:00:19.2]} 28. Kh2 {[%clk 0:00:47.9]} 28...
Qf5 {[%clk 0:00:19]} 29. Qf3 {[%clk 0:00:43.2]} 29... Rd7 {[%clk 0:00:15.5]} 30.
Qg3 {[%clk 0:00:42.1]} 30... Bd6 {[%clk 0:00:15.1]} 31. Bxd6+ {[%clk 0:00:41.3]}
31... cxd6 {[%clk 0:00:15.6]} 32. Qxg7 {[%clk 0:00:41.1]} 32... Qe5+ {[%clk
0:00:16]} 33. Qxe5 {[%clk 0:00:38.4]} 33... dxe5 {[%clk 0:00:16.9]} 34. f4
{[%clk 0:00:36.8]} 34... exf4 {[%clk 0:00:15.8]} 35. g3 {[%clk 0:00:37]} 35...
Rd2+ {[%clk 0:00:14.5]} 36. Kg1 {[%clk 0:00:37]} 36... fxg3 {[%clk 0:00:15.4]}
37. Kf1 {[%clk 0:00:36.6]} 37... a5 {[%clk 0:00:15.7]} 38. Kg1 {[%clk
0:00:36.8]} 38... a4 {[%clk 0:00:15.3]} 39. c5 {[%clk 0:00:37.3]} 39... a3
{[%clk 0:00:16.1]} 40. c6 {[%clk 0:00:32.9]} 40... a2 {[%clk 0:00:16.5]} 41. c7
{[%clk 0:00:32.4]} 41... a1=Q# {[%clk 0:00:17.4]} 0-1

[Event "*** SCC Grand Prix: Titled Tuesday Blitz"]
[Site "Chess.com"]
[Date "2020.06.09"]
[Round "6"]
[White "PowerThinking2650"]
[Black "Glek_Igor"]
[Result "1-0"]
[WhiteElo "2337"]
[BlackElo "2434"]
[TimeControl "180+1"]
[EndTime "10:06:49 PDT"]
[Termination "PowerThinking2650 won on time"]

1. e4 {[%clk 0:03:00.9]} 1... c5 {[%clk 0:02:55.9]} 2. Nf3 {[%clk 0:03:00.2]}
2... a6 {[%clk 0:02:56.2]} 3. c4 {[%clk 0:02:59.3]} 3... d6 {[%clk 0:02:55.7]}
4. Nc3 {[%clk 0:02:51.5]} 4... e5 {[%clk 0:02:54.6]} 5. g3 {[%clk 0:02:46.6]}
5... Nc6 {[%clk 0:02:54.8]} 6. h3 {[%clk 0:02:44.1]} 6... g6 {[%clk 0:02:54]} 7.
Bg2 {[%clk 0:02:42.8]} 7... Rb8 {[%clk 0:02:52.6]} 8. a4 {[%clk 0:02:17.7]} 8...
Bg7 {[%clk 0:02:52]} 9. O-O {[%clk 0:02:16.4]} 9... Nge7 {[%clk 0:02:52.1]} 10.
d3 {[%clk 0:02:12]} 10... O-O {[%clk 0:02:50.8]} 11. Nh2 {[%clk 0:01:45.4]}
11... h6 {[%clk 0:02:42]} 12. Ng4 {[%clk 0:01:24.7]} 12... Kh7 {[%clk
0:02:37.8]} 13. Ne3 {[%clk 0:01:16.9]} 13... f5 {[%clk 0:02:34.5]} 14. exf5
{[%clk 0:01:08.5]} 14... Nxf5 {[%clk 0:02:27.3]} 15. Ned5 {[%clk 0:00:57.5]}
15... b6 {[%clk 0:01:57.9]} 16. Kh2 {[%clk 0:00:48.3]} 16... Be6 {[%clk
0:01:54.4]} 17. f4 {[%clk 0:00:30.6]} 17... Ncd4 {[%clk 0:01:53.6]} 18. fxe5
{[%clk 0:00:25.8]} 18... Bxd5 {[%clk 0:01:14.7]} 19. Nxd5 {[%clk 0:00:23.1]}
19... Bxe5 {[%clk 0:01:13.5]} 20. Bf4 {[%clk 0:00:20.6]} 20... Bxf4 {[%clk
0:00:45.8]} 21. Rxf4 {[%clk 0:00:21.5]} 21... h5 {[%clk 0:00:23.9]} 22. Qf1
{[%clk 0:00:19.5]} 22... Qg5 {[%clk 0:00:19.9]} 23. Qf2 {[%clk 0:00:18.2]} 23...
Rbe8 {[%clk 0:00:08.4]} 24. Re1 {[%clk 0:00:17.1]} 24... Rxe1 {[%clk 0:00:06.5]}
25. Qxe1 {[%clk 0:00:17.1]} 25... h4 {[%clk 0:00:05.4]} 26. Rg4 {[%clk
0:00:13.5]} 26... Qd8 {[%clk 0:00:02.2]} 27. gxh4 {[%clk 0:00:11.3]} 27... Re8
{[%clk 0:00:02.2]} 28. Be4 {[%clk 0:00:11]} 28... Nf3+ {[%clk 0:00:01.3]} 29.
Bxf3 {[%clk 0:00:06.8]} 29... Rxe1 {[%clk 0:00:01.1]} 30. h5 {[%clk 0:00:07.3]}
1-0